bitfinex/quotes_SOLUSD_20251009
["timestamp","ask_amount","ask_price","bid_price","bid_amount"]
[1760027722343,9.54512803,219.17,219.16,44.11647521]
[1760027722918,9.54512803,219.17,219.16,44.09647521]
[1760027723141,9.54512803,219.17,219.16,10.87647521]
[1760027723338,9.54512803,219.17,219.16,44.09647521]
[1760027723533,30.34512803,219.17,219.16,44.09647521]
[1760027723743,30.34512803,219.17,219.15,35.6]
[1760027723930,20.8,219.14,219.09,10.87647521]
[1760027724133,4.98245979,219.1,219.06,35.6]
[1760027724330,20.8,219.14,219.07,33.22]
[1760027724534,20.8,219.14,219.08,10.87647521]
[1760027724825,20.8,219.14,219.1,10.87647521]
[1760027725032,20.8,219.14,219.11,33.22]
[1760027725423,4.98245979,219.12,219.11,44.09647521]
[1760027725833,9.54616917,219.12,219.11,44.09647521]
[1760027727845,9.54616917,219.12,219.06,35.6]
[1760027727846,20.8,219.09,219.06,35.6]
[1760027728150,20.8,219.09,219.07,44.09647521]
[1760027729339,4.98245979,219.08,219.07,44.09647521]
[1760027729730,9.54700242,219.08,219.06,35.6]
[1760027729943,4.98245979,219.07,219.06,35.6]
[1760027730135,4.98245979,219.07,219.06,68.82]
[1760027731851,30.34721078,219.07,219.06,68.82]
[1760027732054,29.14307218,219.07,219.06,68.82]
[1760027732350,63.37870462,219.07,218.98,0.72]
[1760027732570,4.98245979,218.99,218.94,20.71999999]
[1760027732738,4.98245979,218.95,218.94,0.72]
[1760027733051,4.98245979,218.98,218.95,10.87647521]
[1760027733257,4.98245979,218.97,218.96,33.94]
[1760027733549,4.98245979,218.97,218.96,10.87647521]
[1760027733765,4.98245979,218.97,218.96,33.22]
[1760027733929,9.54929542,218.97,218.96,33.22]
[1760027734337,20.96638451,218.97,218.96,33.22]
[1760027734741,20.96638451,218.97,218.93,10.87647521]
[1760027735040,4.98245979,218.94,218.93,10.87647521]
[1760027735345,4.98245979,218.94,218.93,44.09647521]
[1760027735529,4.98245979,218.94,218.93,44.81647521]
[1760027736067,9.54992119,218.94,218.93,44.81647521]
[1760027736554,9.54992119,218.94,218.93,10.87647521]
[1760027736853,9.54992119,218.94,218.93,44.09647521]
[1760027737237,20.8,218.91,218.88,0.1]
[1760027737438,4.98245979,218.89,218.88,0.1]
[1760027737651,15.98611491,218.94,218.88,0.1]
[1760027737652,4.5674614,218.94,218.89,30.8764752]
[1760027737845,9.54992119,218.94,218.91,30.8764752]
[1760027738052,9.54992119,218.94,218.92,33.94]
[1760027738257,4.5674614,218.94,218.93,0.72]
[1760027738449,9.54992119,218.94,218.88,11.69647521]
[1760027738762,15.98611491,218.94,218.88,11.69647521]
[1760027738949,20.8,218.91,218.9,10.87647521]
[1760027739148,20.8,218.91,218.9,44.09647521]
[1760027739464,20.8,218.91,218.9,10.87647521]
[1760027739671,20.8,218.98,218.91,10.87647521]
[1760027739959,36.7831948,218.98,218.93,10.87647521]
[1760027740262,36.7831948,218.98,218.95,10.87647521]
[1760027740439,36.7831948,218.98,218.96,33.22]
[1760027741244,4.98245979,218.97,218.96,33.22]
[1760027741468,3.73840369,219.13,218.97,10.87647521]
[1760027741661,6.77170903,219.13,218.98,33.22]
[1760027742050,6.77170903,219.13,218.99,10.87647521]
[1760027742244,6.77170903,219.13,219.0,1.81159967]
[1760027742444,6.77170903,219.13,219.01,26.3]
[1760027742661,4.98245979,219.01,218.97,10.87647521]
[1760027742863,6.77170903,219.13,218.99,10.87647521]
[1760027743059,6.77170903,219.13,218.98,33.22]
[1760027743250,6.77170903,219.13,218.99,9.99955152]
[1760027743563,20.8,219.0,218.92,0.72]
[1760027743961,20.8,219.0,218.93,33.22]
[1760027744259,4.98245979,218.94,218.89,19.99999999]
[1760027744556,20.8,219.0,218.9,33.22]
[1760027745148,20.8,219.0,218.91,10.87647521]
[1760027745560,9.55530393,218.92,218.91,10.87647521]
[1760027745750,12.09447632,218.92,218.91,10.87647521]
[1760027745946,23.51417301,218.92,218.88,0.1]
[1760027746271,7.52659765,218.89,218.88,10.97647521]
[1760027746504,4.56641855,218.99,218.9,10.87647521]
[1760027746769,28.32659765,218.97,218.93,10.87647521]
[1760027747075,20.8,218.97,218.95,10.87647521]
[1760027747966,25.36685474,218.97,218.95,10.87647521]
[1760027748168,25.36685474,218.97,218.96,33.22]
[1760027748372,12.09345239,218.97,218.96,33.22]
[1760027749160,20.8,219.01,218.96,44.75647521]
[1760027749475,7.52659765,218.98,218.97,0.66]
[1760027749680,12.09322473,218.98,218.97,0.66]
[1760027749853,7.52659765,218.98,218.97,11.53647521]
[1760027750055,4.56621004,219.0,218.98,10.87647521]
[1760027750251,32.21500388,219.01,218.99,44.09647521]
[1760027750468,33.22,219.15,219.0,44.09647521]
[1760027750679,3.02688155,219.14,219.01,33.22]
[1760027751174,7.52659765,219.02,219.01,44.09647521]
[1760027751674,7.52659765,219.02,218.95,19.99999999]
[1760027751675,23.50687341,219.02,218.91,20.65999999]
[1760027751975,7.52659765,218.92,218.88,0.1]
[1760027752158,7.52659765,218.89,218.88,0.1]
[1760027752565,7.52659765,218.89,218.88,33.32]
[1760027753574,12.09510237,218.89,218.88,33.32]
[1760027753767,4.56850472,218.89,218.88,44.19647521]
[1760027753965,12.09510237,218.89,218.88,10.97647521]
[1760027754194,12.09510237,218.89,218.88,44.19647521]
[1760027756087,7.52659765,218.89,218.88,44.19647521]
[1760027757675,7.52659765,218.89,218.88,10.97647521]
[1760027757869,12.09510237,218.89,218.88,44.19647521]
[1760027759097,12.09510237,218.89,218.88,7.78151079]
[1760027759866,7.52659765,218.89,218.88,7.78151079]
[1760027760887,4.56829602,218.9,218.88,7.78151079]
[1760027761372,4.56829602,218.9,218.89,11.53647521]
[1760027761693,12.09489367,218.9,218.89,10.87647521]
[1760027762672,23.51563373,218.9,218.89,91.17647521]
[1760027762991,23.51563373,218.9,218.89,124.39647521]
[1760027764073,11.42074006,218.9,218.89,124.39647521]
[1760027764382,18.94733771,218.9,218.89,124.39647521]
[1760027765804,4.56808734,218.91,218.9,10.87647521]
[1760027766005,32.89468499,218.91,218.9,10.87647521]
[1760027766180,32.89468499,218.91,218.9,44.09647521]
[1760027768496,32.89468499,218.91,218.89,80.3]
[1760027768712,28.32659765,218.9,218.89,80.3]
[1760027768883,7.52659765,218.9,218.89,113.52]
[1760027769082,28.32659765,218.9,218.89,113.52]
[1760027769383,28.32659765,218.9,218.89,114.18]
[1760027769887,20.8,218.9,218.89,114.18]
[1760027770205,7.52659765,218.93,218.89,33.88]
[1760027770508,4.56683563,218.97,218.94,10.87647521]
[1760027770699,4.56683563,218.97,218.96,10.87647521]
[1760027770877,4.56683563,218.97,218.96,11.53647521]
[1760027771077,12.09280769,219.0,218.96,11.53647521]
[1760027771279,4.56621004,219.0,218.98,10.87647521]
[1760027771588,4.56621004,219.0,218.99,64.0964752]
[1760027771589,3.84621004,219.0,218.99,64.0964752]
[1760027771778,11.37280769,219.0,218.99,44.09647521]
[1760027772302,22.7883328,219.0,218.99,33.22]
[1760027772904,22.7883328,219.0,218.94,10.87647521]
[1760027773115,7.52659765,218.96,218.95,44.09647521]
[1760027773477,7.52659765,218.97,218.95,44.79647521]
[1760027773781,7.52659765,218.97,218.96,11.57647521]
[1760027774503,12.09343328,218.97,218.96,10.87647521]
[1760027774692,12.09343328,218.97,218.96,44.09647521]
[1760027774888,12.09343328,218.97,218.96,44.79647521]
[1760027775093,20.8,219.04,218.97,10.87647521]
[1760027775295,7.52659765,219.02,218.99,10.87647521]
[1760027775497,7.52659765,219.02,219.0,33.92]
[1760027775804,20.8,219.04,219.02,10.87647521]
[1760027776016,20.8,219.04,219.03,44.09647521]
[1760027776187,15.97735779,219.06,219.03,44.09647521]
[1760027776382,20.8,219.04,219.03,33.22]
[1760027776606,25.36537618,219.04,219.03,33.22]
[1760027776805,36.77881664,219.04,219.03,33.2]
[1760027777014,44.30541429,219.04,219.03,33.2]
[1760027777982,36.77881664,219.04,219.03,33.2]
[1760027778316,15.97881664,219.04,219.03,44.07647521]
[1760027778510,23.50541429,219.04,219.03,44.77647521]
[1760027778815,20.8,219.05,219.04,10.87647521]
[1760027778984,4.56500634,219.06,219.04,11.57647521]
[1760027779184,4.56500634,219.06,219.05,44.07647521]
[1760027779403,4.56500634,219.06,219.05,10.87647521]
[1760027779609,15.97740476,219.06,219.05,33.2]
[1760027779781,15.97740476,219.06,219.05,2.03249153]
[1760027779983,16.63740476,219.06,219.05,33.2]
[1760027780209,16.63740476,219.06,218.97,10.87647521]
[1760027780406,16.63740476,219.06,218.99,10.87647521]
[1760027780407,24.16400241,219.06,218.99,10.87647521]
[1760027780611,7.52659765,219.0,218.99,10.87647521]
[1760027780811,7.52659765,219.0,218.93,10.87647521]
[1760027780812,8.18659765,219.0,218.93,10.87647521]
[1760027781015,7.52659765,218.94,218.93,33.2]
[1760027781200,7.52659765,218.94,218.93,44.07647521]
[1760027782215,10.72382063,218.94,218.93,44.07647521]
[1760027784707,10.72382063,218.94,218.93,44.77647521]
[1760027785111,3.82097087,219.16,218.98,20.8]
[1760027785415,0.2,219.23,219.15,19.99999999]
[1760027785614,0.2,219.23,219.16,53.89999999]
[1760027785797,0.2,219.23,219.17,10.87647521]
[1760027785798,7.57311426,219.18,219.17,10.87647521]
[1760027786313,7.57311426,219.2,219.19,19.99999999]
[1760027786613,7.57311426,219.2,219.19,54.01999999]
[1760027786920,3.19357634,219.19,219.14,34.04]
[1760027787093,20.8,219.13,219.11,10.87647521]
[1760027787293,7.57311426,219.12,219.11,10.87647521]
[1760027787603,7.57311426,219.12,219.11,44.93647521]
[1760027788116,11.17751721,219.19,219.11,44.93647521]
[1760027788305,7.57311426,219.12,219.11,44.93647521]
[1760027788497,3.19346297,219.2,219.16,10.87647521]
[1760027788819,7.57311426,219.17,219.16,10.87647521]
[1760027789714,7.57311426,219.17,219.15,19.99999999]
[1760027790023,7.57311426,219.17,219.16,34.04]
[1760027790220,7.57311426,219.17,219.16,34.02]
[1760027791419,0.66,219.29,219.16,39.28275153]
[1760027791622,2.73661622,219.25,219.21,19.99999999]
[1760027791801,6.84075455,219.28,219.22,34.0]
[1760027791999,20.8,219.25,219.22,34.0]
[1760027792317,20.8,219.27,219.22,34.0]
[1760027792495,2.73649191,219.26,219.22,34.0]
[1760027792821,7.77311426,219.23,219.22,34.0]
[1760027793621,7.77311426,219.23,219.22,44.87647521]
[1760027795123,0.2,219.23,219.22,44.87647521]
[1760027795417,7.77311426,219.23,219.22,44.87647521]
[1760027796525,0.2,219.23,219.22,45.47647521]
[1760027796808,0.2,219.23,219.22,10.87647521]
[1760027797513,0.2,219.23,219.22,44.79647521]
[1760027798832,0.2,219.23,219.22,49.35810279]
[1760027799500,0.2,219.23,219.22,50.05810279]
[1760027799999,6.83811864,219.36,219.29,19.99999999]
[1760027800207,6.83811864,219.36,219.32,10.87647521]
[1760027800412,7.57311426,219.33,219.32,44.75647521]
[1760027800802,6.83720803,219.39,219.32,44.75647521]
[1760027800803,2.73498039,219.38,219.33,19.99999999]
[1760027801026,7.49588148,219.34,219.33,30.8764752]
[1760027801197,2.73498039,219.38,219.33,30.8764752]
[1760027801402,7.49588148,219.34,219.33,30.8764752]
[1760027802001,7.49588148,219.34,219.33,64.7164752]
[1760027802322,2.73547916,219.34,219.33,64.7164752]
[1760027802533,10.23136064,219.34,219.33,64.7164752]
[1760027802707,7.49588148,219.34,219.33,64.7164752]
[1760027803330,28.29588148,219.37,219.34,10.87647521]
[1760027803530,28.29588148,219.37,219.36,10.87647521]
[1760027804215,7.72640146,219.42,219.36,10.87647521]
[1760027804427,28.29588148,219.39,219.37,53.79999999]
[1760027804637,28.29588148,219.39,219.38,10.87647521]
[1760027804802,7.49588148,219.39,219.38,10.87647521]
[1760027805003,8.18588148,219.39,219.38,44.67647521]
[1760027805312,7.49588148,219.39,219.38,44.67647521]
[1760027805531,7.49283478,219.39,219.38,44.67647521]
[1760027805832,0.2,219.42,219.41,19.99999999]
[1760027806032,0.2,219.42,219.41,30.8764752]
[1760027806215,5.16405171,219.42,219.41,64.6564752]
[1760027806829,8.58853352,219.42,219.39,33.76]
[1760027807016,4.96405171,219.4,219.39,33.76]
[1760027807705,4.96405171,219.4,219.39,33.78]
[1760027807910,7.69878279,219.4,219.39,33.78]
[1760027808333,7.69878279,219.4,219.38,19.99999999]
[1760027808334,2.73473108,219.4,219.38,19.99999999]
[1760027808631,4.96405171,219.4,219.39,44.61647521]
[1760027809731,4.96405171,219.4,219.39,44.63647521]
[1760027810314,2.73470335,219.41,219.39,44.63647521]
[1760027810515,4.96405171,219.4,219.39,44.63647521]
[1760027810828,4.96405171,219.4,219.39,44.61647521]
[1760027811014,4.96405171,219.4,219.39,41.33427521]
[1760027811508,4.5576774,219.41,219.39,41.33427521]
[1760027811710,4.96405171,219.41,219.4,19.99999999]
[1760027812337,0.2,219.42,219.4,19.99999999]
[1760027812637,0.2,219.42,219.41,33.72]
[1760027813020,0.2,219.42,219.41,44.59647521]
[1760027813915,4.75746969,219.42,219.41,10.87647521]
[1760027814112,4.75746969,219.42,219.41,44.55647521]
[1760027814313,4.75746969,219.42,219.41,33.68]
[1760027814314,5.44746969,219.42,219.41,33.68]
[1760027814516,4.75746969,219.42,219.41,33.68]
[1760027814735,5.16405171,219.42,219.41,33.68]
[1760027815415,0.2,219.42,219.41,33.68]
[1760027815638,0.2,219.42,219.41,10.87647521]
[1760027815811,0.2,219.42,219.41,44.65647521]
[1760027816428,0.2,219.42,219.41,10.87647521]
[1760027816712,5.44746969,219.42,219.4,19.99999999]
[1760027816921,5.65405171,219.41,219.4,19.99999999]
[1760027817321,5.65405171,219.41,219.37,33.78]
[1760027817509,4.96405171,219.38,219.36,19.99999999]
[1760027817730,0.69,219.4,219.37,33.78]
[1760027817907,5.24788514,219.4,219.39,19.99999999]
[1760027818410,4.75748959,219.42,219.4,10.87647521]
[1760027818740,0.2,219.42,219.41,64.6564752]
[1760027818918,9.7215214,219.42,219.41,64.6564752]
[1760027820338,5.16405171,219.42,219.41,64.6564752]
[1760027820536,0.2,219.42,219.41,65.3764752]
[1760027820721,0.2,219.42,219.41,64.6564752]
[1760027820916,0.2,219.42,219.41,30.8764752]
[1760027821117,4.75746969,219.42,219.41,30.8764752]
[1760027821426,4.75746969,219.42,219.41,64.6364752]
[1760027823531,0.2,219.42,219.41,65.3564752]
[1760027823739,4.75746969,219.42,219.41,64.6364752]
[1760027824821,5.44746969,219.42,219.41,53.75999999]
[1760027825024,16.84114392,219.42,219.39,19.99999999]
[1760027825230,4.96405171,219.4,219.39,30.8764752]
[1760027825531,4.96405171,219.4,219.39,64.6364752]
[1760027825730,5.65405171,219.4,219.39,19.99999999]
[1760027825927,5.65405171,219.4,219.37,19.99999999]
[1760027826143,4.96405171,219.38,219.37,19.99999999]
[1760027826719,9.52235237,219.38,219.37,19.99999999]
[1760027826919,10.21235237,219.38,219.37,19.99999999]
[1760027827432,10.21235237,219.38,219.35,53.73999999]
[1760027827629,4.96405171,219.36,219.35,64.6164752]
[1760027828340,0.2,219.42,219.36,10.87647521]
[1760027828641,20.8,219.4,219.39,30.8764752]
[1760027828829,20.8,219.4,219.39,64.6164752]
[1760027829141,20.8,219.4,219.39,30.8764752]
[1760027829326,4.75760082,219.42,219.4,10.87647521]
[1760027829515,0.2,219.42,219.41,65.3164752]
[1760027829716,0.69,219.54,219.42,10.87647521]
[1760027829914,0.69,219.54,219.48,19.99999999]
[1760027829915,4.96405171,219.49,219.48,19.99999999]
[1760027830353,31.01006792,219.49,219.48,19.99999999]
[1760027830531,30.32006792,219.49,219.48,19.99999999]
[1760027830850,25.76405171,219.49,219.48,19.99999999]
[1760027831041,9.52006792,219.49,219.48,19.99999999]
[1760027831231,13.76790705,219.55,219.49,10.87647521]
[1760027831566,20.8,219.52,219.51,10.87647521]
[1760027831860,0.69,219.55,219.51,44.61647521]
[1760027832021,4.55435624,219.57,219.54,19.99999999]
[1760027832352,3.26967873,219.62,219.55,44.61647521]
[1760027832642,25.76405171,219.6,219.59,19.99999999]
[1760027833349,4.96405171,219.6,219.59,30.8764752]
[1760027833519,30.51740058,219.62,219.61,30.8764752]
[1760027834033,0.2,219.62,219.61,30.8764752]
[1760027834352,4.75331936,219.62,219.61,30.8764752]
[1760027835937,37.64661778,219.62,219.59,19.99999999]
[1760027836125,4.96405171,219.6,219.59,19.99999999]
[1760027836329,20.8,219.58,219.57,19.99999999]
[1760027836530,42.4135726,219.58,219.53,19.99999999]
[1760027836742,4.96405171,219.54,219.53,19.99999999]
[1760027838125,4.96405171,219.54,219.53,30.8764752]
[1760027838530,0.2,219.62,219.53,31.38796518]
[1760027838859,0.2,219.62,219.52,33.7]
[1760027838860,0.2,219.62,219.61,19.99999999]
[1760027839037,9.71737107,219.62,219.61,19.99999999]
[1760027839846,0.2,219.62,219.61,30.8764752]
[1760027840734,4.75331936,219.62,219.61,30.8764752]
[1760027841655,0.2,219.62,219.61,64.7964752]
[1760027842052,4.75331936,219.62,219.61,30.8764752]
[1760027842252,9.71737107,219.62,219.61,30.8764752]
[1760027842754,4.75331936,219.62,219.61,30.8764752]
[1760027842929,9.71737107,219.62,219.61,30.8764752]
[1760027844135,10.42737107,219.62,219.61,30.8764752]
[1760027844752,9.71737107,219.62,219.61,30.8764752]
[1760027846734,4.75331936,219.62,219.61,30.8764752]
[1760027847045,9.71737107,219.62,219.61,30.8764752]
[1760027847652,10.42737107,219.62,219.61,19.99999999]
[1760027847857,20.8,219.59,219.47,0.54]
[1760027848054,0.71,219.58,219.44,0.54]
[1760027848263,4.96405171,219.49,219.45,33.8]
[1760027848556,4.96405171,219.5,219.46,10.87647521]
[1760027848730,0.71,219.54,219.46,10.87647521]
[1760027848934,9.51995437,219.5,219.46,10.87647521]
[1760027849131,9.51995437,219.5,219.41,4.5575246]
[1760027849132,4.96405171,219.49,219.41,4.5575246]
[1760027849460,4.96405171,219.47,219.43,10.87647521]
[1760027849657,4.96405171,219.49,219.43,11.41647521]
[1760027849958,4.96405171,219.52,219.44,0.54]
[1760027850163,4.96405171,219.52,219.45,44.67647521]
[1760027850465,4.96405171,219.49,219.43,10.87647521]
[1760027850649,4.96405171,219.49,219.47,10.87647521]
[1760027851162,9.52027408,219.49,219.47,10.87647521]
[1760027851773,9.52027408,219.49,219.46,10.87647521]
[1760027852431,9.52027408,219.49,219.42,5.09745692]
[1760027852432,9.52027408,219.49,219.42,0.54]
[1760027852637,10.23027408,219.49,219.44,10.87647521]
[1760027852870,21.51,219.51,219.44,10.87647521]
[1760027853044,4.55584768,219.5,219.43,33.76]
[1760027853364,4.96405171,219.49,219.43,33.76]
[1760027854557,15.94536932,219.5,219.43,33.76]
[1760027854760,4.96405171,219.48,219.43,33.76]
[1760027855352,9.52041943,219.48,219.43,34.3]
[1760027855545,0.71,219.51,219.43,34.3]
[1760027855856,4.96405171,219.51,219.44,11.41647521]
[1760027856058,4.96405171,219.49,219.44,11.41647521]
[1760027856537,4.96405171,219.49,219.45,33.68]
[1760027856737,4.55539358,219.52,219.47,10.87647521]
[1760027856944,0.71,219.58,219.49,10.87647521]
[1760027857140,4.96405171,219.53,219.51,10.87647521]
[1760027857564,9.51933977,219.53,219.51,10.87647521]
[1760027857865,4.96405171,219.53,219.51,10.87647521]
[1760027858367,9.51929465,219.53,219.51,10.87647521]
[1760027858554,9.51929465,219.53,219.46,10.87647521]
[1760027858762,4.96405171,219.52,219.5,10.87647521]
[1760027859366,4.55551054,219.52,219.5,10.87647521]
[1760027859853,4.55551054,219.52,219.51,10.87647521]
[1760027862081,4.55551054,219.52,219.47,0.54]
[1760027862245,4.55551054,219.52,219.48,44.47647521]
[1760027862447,4.96405171,219.49,219.43,10.87647521]
[1760027862675,4.96405171,219.49,219.45,10.87647521]
[1760027862847,4.96405171,219.49,219.42,20.8]
[1760027863178,15.9439945,219.52,219.43,10.87647521]
[1760027863179,4.96405171,219.45,219.43,10.87647521]
[1760027863353,4.96405171,219.45,219.44,10.87647521]
[1760027863666,4.96405171,219.45,219.38,0.54]
[1760027863876,4.96405171,219.43,219.4,10.87647521]
[1760027864044,9.52151395,219.43,219.4,10.87647521]
[1760027864447,9.52151395,219.43,219.36,5.09853903]
[1760027864652,9.52151395,219.43,219.4,10.87647521]
[1760027864951,4.96405171,219.43,219.4,10.87647521]
[1760027865156,5.63405171,219.45,219.4,10.87647521]
[1760027865371,4.96405171,219.45,219.4,10.87647521]
[1760027865577,9.52091291,219.45,219.4,10.87647521]
[1760027865767,10.20091291,219.45,219.4,10.87647521]
[1760027866078,4.96405171,219.45,219.4,10.87647521]
[1760027866370,9.52084341,219.46,219.41,0.54]
[1760027866576,9.52084341,219.46,219.43,10.87647521]
[1760027867465,4.96298702,219.45,219.43,10.87647521]
[1760027868044,20.8,219.49,219.4,15.43433501]
[1760027868251,7.48830651,219.45,219.38,4.55813588]
[1760027868445,7.48830651,219.45,219.39,44.37647521]
[1760027868669,5.23623183,219.48,219.39,44.37647521]
[1760027868865,7.48830651,219.43,219.38,10.87647521]
[1760027869086,7.48830651,219.41,219.38,10.87647521]
[1760027869272,8.16830651,219.41,219.38,10.87647521]
[1760027869577,7.48830651,219.39,219.3,10.87647521]
[1760027869771,0.68,219.38,219.28,5.10027927]
[1760027870069,7.48830651,219.35,219.32,10.87647521]
[1760027870274,12.04729224,219.35,219.32,10.87647521]
[1760027870449,12.04729224,219.35,219.29,10.87647521]
[1760027870450,7.48830651,219.33,219.29,10.87647521]
[1760027870777,8.16830651,219.33,219.31,10.87647521]
[1760027870980,0.68,219.32,219.28,33.52]
[1760027871152,7.48830651,219.31,219.26,10.87647521]
[1760027871357,7.48830651,219.31,219.09,22.06438471]
[1760027871358,7.48830651,219.27,219.21,0.1]
[1760027871661,7.48830651,219.23,219.21,0.1]
[1760027873166,12.04975965,219.23,219.21,0.1]
[1760027873364,0.68,219.22,219.21,0.1]
[1760027873764,12.04975965,219.23,219.21,0.1]
[1760027873971,7.48830651,219.23,219.21,0.1]
[1760027874372,8.16830651,219.23,219.21,0.1]
[1760027875279,12.7297664,219.23,219.21,0.1]
[1760027875975,0.68,219.22,219.21,0.1]
[1760027876381,7.48830651,219.23,219.21,0.1]
[1760027876764,8.16830651,219.23,219.21,0.1]
[1760027876964,12.72972671,219.23,219.21,0.1]
[1760027877488,7.48830651,219.22,219.21,0.1]
[1760027877668,8.16830651,219.22,219.21,0.1]
[1760027877985,7.48830651,219.22,219.21,0.1]
[1760027878490,8.16830651,219.22,219.21,0.1]
[1760027878787,7.48830651,219.22,219.21,0.1]
[1760027880368,7.48830651,219.23,219.21,0.1]
[1760027881361,7.48830651,219.25,219.22,10.87647521]
[1760027881765,7.48830651,219.27,219.22,10.87647521]
[1760027881966,7.48830651,219.3,219.24,10.87647521]
[1760027882663,7.48830651,219.3,219.25,4.56100342]
[1760027882866,7.48830651,219.32,219.26,11.41647521]
[1760027883059,7.48830651,219.32,219.24,10.87647521]
[1760027883262,7.48830651,219.3,219.24,10.87647521]
[1760027884483,7.48830651,219.32,219.26,10.87647521]
[1760027884682,8.16830651,219.32,219.26,10.87647521]
[1760027885000,7.48830651,219.28,219.25,10.87647521]
[1760027885367,7.48830651,219.28,219.24,10.87647521]
[1760027885698,7.48830651,219.26,219.21,0.1]
[1760027885999,7.48830651,219.22,219.21,0.1]
[1760027886201,8.16830651,219.22,219.21,0.1]
[1760027886575,7.48830651,219.22,219.21,0.1]
[1760027887193,33.46,219.31,219.21,0.64]
[1760027887194,4.56047208,219.28,219.21,0.64]
[1760027887398,0.68,219.32,219.22,10.87647521]
[1760027887604,7.48830651,219.26,219.22,91.17647521]
[1760027888899,7.48830651,219.26,219.22,96.27804301]
[1760027889108,7.48830651,219.26,219.22,95.73804301]
[1760027889311,7.48830651,219.26,219.22,91.17647521]
[1760027890095,7.48830651,219.26,219.22,95.7380341]
[1760027890277,0.68,219.31,219.22,95.7380341]
[1760027890488,7.48830651,219.3,219.24,10.87647521]
[1760027890700,7.48830651,219.28,219.25,10.87647521]
[1760027891010,7.48830651,219.26,219.23,10.87647521]
[1760027891204,7.48830651,219.24,219.23,10.87647521]
[1760027891389,7.48830651,219.24,219.23,91.17647521]
[1760027891804,7.48830651,219.26,219.23,91.17647521]
[1760027892309,7.48830651,219.24,219.21,0.1]
[1760027892606,7.48830651,219.22,219.21,0.1]
[1760027892898,7.48830651,219.22,219.21,91.27647521]
[1760027893481,7.48830651,219.22,219.21,10.97647521]
[1760027893790,0.69,219.25,219.22,10.87647521]
[1760027893994,7.48830651,219.23,219.22,10.87647521]
[1760027894200,7.48830651,219.23,219.22,91.17647521]
[1760027894997,12.73972602,219.23,219.21,0.1]
[1760027895198,12.73972602,219.23,219.17,80.3]
[1760027895376,7.48830651,219.18,219.13,0.1]
[1760027895578,7.48830651,219.14,219.13,0.1]
[1760027896081,7.48830651,219.18,219.13,16.17997632]
[1760027896280,7.48830651,219.18,219.14,33.46]
[1760027896898,7.48830651,219.18,219.16,10.87647521]
[1760027897082,7.48830651,219.2,219.16,10.87647521]
[1760027897280,0.69,219.25,219.18,10.87647521]
[1760027897478,0.69,219.25,219.18,91.17647521]
[1760027897479,7.48830651,219.24,219.18,91.17647521]
[1760027897691,7.48830651,219.22,219.18,91.17647521]
[1760027898088,0.69,219.24,219.18,91.17647521]
[1760027898393,7.48830651,219.23,219.18,91.81647521]
[1760027898594,7.48830651,219.23,219.18,91.17647521]
[1760027899188,7.48830651,219.23,219.19,4.56225192]
[1760027899503,7.48830651,219.23,219.18,95.73880413]
[1760027900312,7.48830651,219.23,219.18,96.37880413]
[1760027901190,7.48830651,219.23,219.18,227.27880413]
[1760027901391,0.65,219.22,219.18,226.63880413]
[1760027901598,7.48830651,219.21,219.18,10.87647521]
[1760027902407,20.8,219.28,219.2,10.87647521]
[1760027902598,20.8,219.28,219.22,10.87647521]
[1760027902790,20.8,219.28,219.23,33.42]
[1760027902992,8.13830651,219.27,219.23,33.42]
[1760027903382,7.48830651,219.25,219.24,10.87647521]
[1760027904231,8.13830651,219.25,219.21,80.3]
[1760027904518,0.65,219.24,219.22,10.87647521]
[1760027904819,15.96213489,219.27,219.22,10.87647521]
[1760027904994,0.65,219.24,219.22,10.87647521]
[1760027905493,7.48830651,219.26,219.22,10.87647521]
[1760027905697,4.55998594,219.3,219.24,10.87647521]
[1760027905898,7.48830651,219.28,219.24,10.87647521]
[1760027906328,7.48830651,219.28,219.25,0.64]
[1760027906690,12.04807367,219.34,219.27,10.87647521]
[1760027906919,7.48830651,219.3,219.27,10.87647521]
[1760027907298,12.69839196,219.3,219.27,10.87647521]
[1760027907501,12.04839196,219.3,219.27,10.87647521]
[1760027907697,7.48830651,219.28,219.27,10.87647521]
[1760027907923,7.48830651,219.28,219.26,10.87647521]
[1760027907924,8.13830651,219.28,219.26,10.87647521]
[1760027908227,0.65,219.28,219.26,10.87647521]
[1760027908600,0.65,219.31,219.23,44.89647521]
[1760027908928,5.20977583,219.31,219.25,10.87647521]